bitfinex/quotes_ETHUSD_20241130
["timestamp","ask_amount","ask_price","bid_price","bid_amount"]
[1732968096385,3.06667878,3657.1,3657.0,10.31776254]
[1732968097165,8.78e-06,3657.1,3657.0,10.31776254]
[1732968099261,8.78e-06,3657.1,3657.0,10.85572242]
[1732968099467,8.78e-06,3657.1,3657.0,11.12912242]
[1732968100558,8.78e-06,3657.1,3657.0,10.93912242]
[1732968100887,8.78e-06,3657.1,3657.0,11.12912242]
[1732968102214,8.78e-06,3657.1,3657.0,8.92803988]
[1732968102370,8.78e-06,3657.1,3657.0,9.02803988]
[1732968102570,8.78e-06,3657.1,3657.0,11.12912242]
[1732968104517,8.78e-06,3657.3,3657.2,3.19773]
[1732968104741,8.78e-06,3657.3,3657.2,8.4172652]
[1732968105003,8.78e-06,3657.3,3657.2,8.38993]
[1732968110864,8.78e-06,3657.3,3657.2,9.483441]
[1732968112573,1.36473184,3657.9,3657.8,4.46608]
[1732968112765,1.90137184,3658.5,3658.4,4.83903]
[1732968112993,1.30608939,3658.5,3658.4,8.38903]
[1732968113441,9.39e-06,3658.5,3658.4,8.38903]
[1732968114818,0.34029939,3658.8,3658.7,6.28321]
[1732968115116,9.39e-06,3658.8,3658.7,6.55661]
[1732968116021,3.67041939,3658.9,3658.8,3.19653]
[1732968116227,0.93735939,3658.9,3658.8,8.53405573]
[1732968116428,9.39e-06,3659.0,3658.9,3.0]
[1732968116620,9.39e-06,3659.0,3658.9,8.65754254]
[1732968121139,9.39e-06,3659.2,3659.1,6.74631]
[1732968121503,9.39e-06,3659.2,3659.1,8.40651]
[1732968123054,1.11,3659.8,3659.7,3.47246]
[1732968123204,1.11,3659.8,3659.7,6.47246]
[1732968126809,1e-05,3659.8,3659.7,8.23266]
[1732968127143,1.06418109,3660.0,3659.9,6.38231]
[1732968127523,1.06418109,3660.0,3659.9,6.47231]
[1732968128018,1.06418109,3660.0,3659.9,6.57231]
[1732968128240,1.09e-06,3660.2,3660.1,0.19]
[1732968128443,1.09e-06,3660.2,3660.1,8.94664254]
[1732968130983,1.09e-06,3660.2,3660.1,10.60684254]
[1732968131770,1.09e-06,3660.2,3660.1,8.50576]
[1732968132130,1.09e-06,3660.2,3660.1,3.19556]
[1732968132337,1.52210109,3660.2,3660.1,3.19556]
[1732968132645,1.52210109,3660.2,3660.1,3.10556]
[1732968132850,1.52210109,3660.2,3660.1,3.19556]
[1732968134077,1.52210109,3660.2,3660.1,6.19556]
[1732968134235,1.52210109,3660.2,3660.1,6.74556]
[1732968135772,1.09e-06,3660.2,3660.1,6.74556]
[1732968140404,1.50990109,3660.2,3660.1,6.74556]
[1732968141260,1.09e-06,3660.2,3660.1,6.74556]
[1732968142795,1.09e-06,3660.2,3660.1,7.838327]
[1732968144386,3.33,3660.5,3660.4,3.10534]
[1732968144600,3.33,3660.5,3660.4,6.65534]
[1732968144864,3.33,3660.5,3660.4,6.74534]
[1732968147622,3.33,3660.5,3660.4,8.26954]
[1732968148621,3.33,3660.5,3660.4,6.74534]
[1732968149320,4.9144,3660.5,3660.4,6.74534]
[1732968149713,4.9144,3660.5,3660.4,7.29096491]
[1732968150114,3.33,3660.5,3660.4,7.29096491]
[1732968154436,3.33,3660.5,3660.4,4.29096491]
[1732968154925,4.8568,3660.5,3660.4,4.29096491]
[1732968155595,4.8568,3660.5,3660.4,7.29096491]
[1732968157343,3.33,3660.5,3660.4,7.29096491]
[1732968158034,1.96407,3660.5,3660.4,8.84516491]
[1732968159208,1.96407,3660.5,3660.4,7.29096491]
[1732968160064,0.59814,3660.5,3660.4,7.29096491]
[1732968160351,2.22,3660.7,3660.6,8.84627254]
[1732968170901,2.22,3660.7,3660.6,6.74519]
[1732968172385,2.22,3660.7,3660.6,8.84627254]
[1732968173988,2.22,3660.7,3660.6,6.74519]
[1732968174146,2.22,3660.7,3660.6,6.19519]
[1732968175347,2.22,3660.7,3660.6,3.19519]
[1732968175688,3.7405,3660.7,3660.6,3.19519]
[1732968175869,3.7405,3660.7,3660.6,3.10519]
[1732968176687,3.7405,3660.7,3660.6,6.65519]
[1732968182710,1.5205,3660.6,3660.5,3.0]
[1732968182906,1.5205,3660.6,3660.1,1.092767]
[1732968183061,1.5205,3660.6,3660.4,2.73189]
[1732968183257,1.5205,3660.6,3660.5,2.73186]
[1732968183499,2.176155,3660.6,3660.5,2.73186]
[1732968184597,1.5205,3660.6,3660.5,2.73186]
[1732968187765,1.5205,3660.6,3660.3,2.73197]
[1732968188105,1.5205,3660.6,3660.4,2.73194]
[1732968188324,1.5205,3660.6,3660.2,2.73209]
[1732968188325,1.5205,3660.6,3660.5,2.73186]
[1732968188610,1.5205,3660.6,3660.3,2.73196]
[1732968188810,0.59605,3660.5,3660.4,2.73189]
[1732968189109,2.11655,3660.5,3660.4,2.73189]
[1732968189407,2.11655,3660.5,3660.3,5.73199]
[1732968189408,1.5205,3660.5,3660.3,5.73199]
[1732968189563,1.5205,3660.5,3660.3,2.73199]
[1732968189764,1.5205,3660.5,3660.4,2.73194]
[1732968192125,1.5205,3660.5,3660.4,6.28194]
[1732968192324,2.22,3660.7,3660.6,6.47179]
[1732968195214,2.22,3660.7,3660.6,6.74519]
[1732968195387,2.22,3660.7,3660.6,6.78985877]
[1732968197231,2.22,3660.7,3660.6,7.33062969]
[1732968197779,2.22,3660.8,3660.7,3.00511]
[1732968198132,2.22,3660.8,3660.7,6.62709178]
[1732968198296,2.22,3660.8,3660.7,6.59977754]
[1732968198497,5.55,3661.5,3661.4,4.88599]
[1732968198686,5.55,3661.5,3661.4,7.93064901]
[1732968198888,5.55,3661.5,3661.4,8.20404901]
[1732968199387,5.55,3661.5,3661.4,7.93064901]
[1732968201495,3.33,3661.8,3661.4,7.93064901]
[1732968201496,3.33,3661.8,3661.7,2.73097]
[1732968201708,3.33,3661.8,3661.7,6.38097]
[1732968202304,3.33,3661.8,3661.7,6.47097]
[1732968202619,1.96455,3661.8,3661.7,7.98577]
[1732968206724,0.85463,3662.0,3661.9,5.83082]
[1732968207032,7.34763558,3662.2,3662.0,6.28074]
[1732968208349,7.34763558,3662.2,3662.0,7.79554]
[1732968208509,7.34763558,3662.2,3662.0,6.28074]
[1732968210729,7.34763558,3662.2,3662.0,6.82753669]
[1732968212372,7.34763558,3662.2,3662.0,8.34233669]
[1732968213069,7.34763558,3662.2,3662.0,6.82753669]
[1732968213432,7.34763558,3662.2,3662.0,5.73074]
[1732968214222,30.00746232,3662.1,3662.0,9.47662254]
[1732968214427,25.91144232,3662.1,3662.0,9.75002254]
[1732968214854,23.76242965,3662.1,3662.0,10.30002254]
[1732968215222,22.39712965,3662.1,3662.0,10.30002254]
[1732968215656,19.66644965,3662.1,3662.0,10.30002254]
[1732968216049,16.93576965,3662.1,3662.0,10.30002254]
[1732968216255,15.57042965,3662.1,3662.0,10.30002254]
[1732968216462,14.20508965,3662.1,3662.0,10.30002254]
[1732968216756,10.10906965,3662.1,3662.0,10.40002254]
[1732968216925,10.10906965,3662.1,3662.0,10.75400471]
[1732968219062,4.29399324,3662.1,3662.0,10.75400471]
[1732968219772,1.56347324,3662.1,3662.0,10.75400471]
[1732968219957,4.79103048,3662.2,3662.1,6.65407]
[1732968220350,0.69525048,3662.2,3662.1,6.74407]
[1732968220527,15.60579976,3662.3,3662.2,6.55399]
[1732968221232,14.24053976,3662.3,3662.2,6.55399]
[1732968223373,14.24053976,3662.3,3662.2,6.28059]
[1732968223527,14.24053976,3662.3,3662.2,6.55399]
[1732968223733,14.24053976,3662.3,3662.2,3.55399]
[1732968224169,14.24053976,3662.3,3662.2,5.19879]
[1732968225032,14.24053976,3662.3,3662.2,8.19879]
[1732968226079,10.14475976,3662.3,3662.2,8.19879]
[1732968226235,8.77949976,3662.3,3662.2,8.19879]
[1732968228181,8.77949976,3662.3,3662.2,6.00399]
[1732968229874,8.77949976,3662.3,3662.2,6.55399]
[1732968231091,8.77949976,3662.3,3662.2,8.19879]
[1732968233045,8.77949976,3662.3,3662.2,9.290827]
[1732968234466,8.77949976,3662.3,3662.2,7.646027]
[1732968235091,8.77949976,3662.3,3662.2,7.096027]
[1732968236299,8.77949976,3662.3,3662.2,7.646027]
[1732968236994,8.77949976,3662.3,3662.2,6.55399]
[1732968243138,8.77949976,3662.3,3661.7,4.24957]
[1732968243139,1.5843,3662.2,3661.4,0.23465901]
[1732968243338,1.5843,3662.2,3661.8,2.73089]
[1732968243629,1.5843,3662.2,3661.7,2.73095]
[1732968243783,1.5843,3662.2,3661.8,2.73088]
[1732968243983,1.5843,3662.0,3661.8,2.73087]
[1732968244187,1.5843,3662.0,3661.8,2.73088]
[1732968245795,1.5843,3662.0,3661.7,0.55]
[1732968246006,1.5843,3662.0,3661.7,5.73092]
[1732968246324,1.5843,3662.0,3661.9,2.73082]
[1732968248128,10.36379976,3662.3,3662.2,3.28059]
[1732968248522,8.77949976,3662.3,3662.2,6.38059]
[1732968250459,10.36379976,3662.3,3662.2,6.38059]
[1732968250614,8.77949976,3662.3,3662.2,6.38059]
[1732968253644,6.04897976,3662.3,3662.2,6.38059]
[1732968253849,1.95319976,3662.3,3662.2,6.38059]
[1732968254452,9.76e-06,3662.3,3662.2,6.65349]
[1732968255150,2.3149344,3662.6,3662.5,10.08085254]
[1732968255446,2.3149344,3662.6,3662.5,10.35375254]
[1732968256809,0.1847344,3662.8,3662.7,6.74312]
[1732968257922,1.6397344,3663.0,3662.9,2.82007]
[1732968258124,5.55,3663.6,3663.2,0.1]
[1732968258352,9.3981,3663.3,3663.2,6.46985]
[1732968258561,7.77,3663.3,3663.2,6.46985]
[1732968260029,7.77,3663.3,3663.2,6.36985]
[1732968262850,9.3981,3663.3,3663.2,6.27985]
[1732968264116,11.89191,3663.3,3663.2,6.27985]
[1732968264537,11.89191,3663.3,3663.2,6.55275]
[1732968265049,11.89191,3663.3,3663.2,6.27985]
[1732968267257,9.3981,3663.3,3663.2,6.36985]
[1732968267821,9.3981,3663.3,3663.2,5.81985]
[1732968269952,7.77,3663.3,3663.2,5.81985]
[1732968270344,7.77,3663.3,3663.2,5.72985]
[1732968270655,7.77,3663.3,3663.2,5.81985]
[1732968270813,7.77,3663.3,3663.2,5.72985]
[1732968271016,7.77,3663.3,3663.2,5.81985]
[1732968271232,10.26381,3663.3,3663.2,5.81985]
[1732968271654,7.77,3663.3,3663.2,5.81985]
[1732968272915,7.77,3663.3,3663.2,6.36985]
[1732968273120,7.77,3663.3,3663.2,6.64275]
[1732968275825,7.76482652,3663.3,3663.2,6.64275]
[1732968278981,9.40452652,3663.3,3663.2,5.81985]
[1732968280243,9.40452652,3663.3,3663.2,6.36985]
[1732968282552,9.40452652,3663.3,3663.2,5.72985]
[1732968282894,11.89897917,3663.3,3663.2,5.72985]
[1732968284699,11.89897917,3663.3,3663.2,6.00275]
[1732968284995,11.89897917,3663.3,3663.2,5.72985]
[1732968285594,7.76482652,3663.3,3663.2,5.72985]
[1732968287377,7.76482652,3663.3,3663.2,5.72985]
[1732968294396,9.38262652,3663.3,3663.2,5.72985]
[1732968298087,9.38262652,3663.3,3663.0,2.72994]
[1732968298088,9.38262652,3663.3,3663.1,3.0]
[1732968298284,9.38262652,3663.3,3663.2,2.72985]
[1732968301594,1.6178,3663.2,3662.4,0.55]
[1732968301799,1.6178,3663.2,3663.1,2.72992]
[1732968303340,7.76482652,3663.3,3663.2,2.72985]
[1732968310732,7.76482652,3663.3,3663.2,7.89445]
[1732968312325,7.76482652,3663.3,3663.2,7.99445]
[1732968315026,7.76482652,3663.3,3663.2,8.26735]
[1732968315328,7.76482652,3663.3,3663.2,8.31198706]
[1732968319330,7.76482652,3663.3,3663.2,6.59738706]
[1732968320514,7.76482652,3663.3,3663.2,5.77448706]
[1732968320732,10.25287917,3663.3,3663.2,5.77448706]
[1732968322013,7.76482652,3663.3,3663.2,5.77448706]
[1732968322533,7.76482652,3663.3,3663.2,6.86655406]
[1732968323330,9.34052652,3663.3,3663.2,6.86655406]
[1732968324151,9.34052652,3663.3,3663.2,1.13670406]
[1732968324456,9.34052652,3663.3,3662.9,0.02951582]
[1732968324457,4.3057,3663.0,3662.9,0.02951582]
[1732968324653,5.78673765,3663.0,3662.9,0.02951582]
[1732968324971,7.87983989,3663.0,3662.9,0.02951582]
[1732968327517,5.15983989,3663.0,3662.9,0.02951582]
[1732968329467,7.88983989,3663.0,3662.9,0.02951582]
[1732968334247,4.30214,3662.0,3661.9,0.03437867]
[1732968334574,5.21573822,3662.0,3661.9,0.03437867]
[1732968335305,2.48499822,3662.0,3661.9,0.03437867]
[1732968335672,5.22573822,3662.0,3661.9,0.03437867]
[1732968336000,5.21573822,3662.0,3661.9,0.03437867]
[1732968337196,2.48499822,3662.0,3661.9,0.03437867]
[1732968337563,2.48499822,3662.0,3661.9,0.10255735]
[1732968337895,5.21573822,3662.0,3661.9,0.10255735]
[1732968338310,2.48499822,3662.0,3661.9,0.10255735]
[1732968339384,5.21573822,3662.0,3661.9,0.10255735]
[1732968343680,2.48499822,3662.0,3661.9,0.10255735]
[1732968344113,2.48499822,3662.0,3661.9,0.03437867]
[1732968344306,1.5714,3662.3,3661.9,0.10255735]
[1732968344472,1.5714,3662.3,3661.9,0.03437867]
[1732968344807,1.5714,3662.3,3662.0,0.06820377]
[1732968348500,2.09310224,3662.7,3662.0,0.06820377]
[1732968348736,2.09310224,3662.7,3662.1,1.6581]
[1732968348964,2.09310224,3662.7,3662.2,2.73054]
[1732968349243,2.09310224,3662.7,3662.3,0.0680853]
[1732968349401,2.09310224,3662.7,3662.2,2.73054]
[1732968349734,2.09310224,3662.7,3662.3,2.79858257]
[1732968350095,2.09310224,3662.7,3662.3,0.06807257]
[1732968350545,2.09310224,3662.7,3662.1,4.38877]
[1732968350845,2.09310224,3662.7,3661.9,2.76517867]
[1732968350846,2.88167123,3662.7,3661.9,2.76517867]
[1732968351043,2.09310224,3662.3,3662.0,0.068167]
[1732968351201,2.73067,3662.1,3662.0,0.068167]
[1732968351596,2.74067,3662.1,3662.0,0.068167]
[1732968351841,2.74067,3662.1,3661.9,0.03437867]
[1732968352046,1.5714,3662.2,3661.9,0.03437867]
[1732968352343,0.63950222,3662.1,3661.9,0.03437867]
[1732968352639,0.63950222,3662.1,3662.0,0.06815851]
[1732968352845,4.30177,3662.6,3662.0,0.06815851]
[1732968353014,2.73037,3662.5,3662.0,0.06815851]
[1732968353344,1.42348327,3662.6,3662.0,0.06815851]
[1732968353519,4.15379327,3662.6,3662.0,0.06815851]
[1732968353717,5.05249182,3662.6,3662.0,0.06815851]
[1732968355055,2.73037,3662.5,3662.0,0.06815851]
[1732968355713,2.32218182,3662.6,3662.0,0.06815851]
[1732968356435,4.24875,3662.2,3662.0,0.06815851]
[1732968357130,2.73067,3662.1,3662.0,0.06815851]
[1732968357719,4.24877,3662.1,3662.0,0.06815851]
[1732968361335,4.83363224,3662.3,3662.0,0.06815851]
[1732968361336,4.82363224,3662.3,3662.0,0.06815851]
[1732968362474,2.7306,3662.2,3662.0,0.06815851]
[1732968362979,2.73067,3662.1,3662.0,0.06815851]
[1732968363358,2.74067,3662.1,3662.0,0.06815851]
[1732968363570,4.25877,3662.1,3662.0,0.06815851]
[1732968363817,2.73074,3662.0,3661.9,0.03437867]
[1732968364073,4.00277435,3662.0,3661.9,0.03437867]
[1732968365276,5.77650469,3662.0,3661.9,0.03437867]
[1732968366104,6.18558608,3662.0,3661.9,0.03437867]
[1732968366264,5.77650469,3662.0,3661.9,0.03437867]
[1732968366473,6.18547953,3662.0,3661.9,0.03437867]
[1732968367320,5.77650469,3662.0,3661.9,0.03437867]
[1732968367526,5.77638465,3662.0,3661.9,0.03437867]
[1732968368012,6.88638465,3662.0,3661.9,0.03437867]
[1732968368676,6.88632389,3662.0,3661.9,0.03437867]
[1732968369073,7.83163342,3662.0,3661.9,0.03437867]
[1732968369417,10.39413655,3662.0,3661.9,0.03437867]
[1732968369626,11.50413655,3662.0,3661.9,0.03437867]
[1732968369980,10.35959874,3662.0,3661.9,0.03437867]
[1732968370175,8.94163342,3662.0,3661.9,0.03437867]
[1732968370488,7.99632389,3662.0,3661.9,0.03437867]
[1732968370693,8.68659512,3662.0,3661.9,0.03437867]
[1732968370989,7.99618414,3662.0,3661.9,0.03437867]
[1732968371322,8.85087435,3662.0,3661.9,0.03437867]
[1732968372980,9.96087435,3662.0,3661.9,0.03437867]
[1732968373477,10.21609832,3662.0,3661.9,0.03437867]
[1732968373677,10.21609677,3662.0,3661.9,0.03437867]
[1732968373876,9.96087435,3662.0,3661.9,0.03437867]
[1732968374472,10.21609332,3662.0,3661.9,0.03437867]
[1732968374681,7.07725332,3662.0,3661.9,0.03437867]
[1732968374893,8.28074,3662.0,3661.9,0.03437867]
[1732968376304,9.39074,3662.0,3661.9,0.03437867]
[1732968376729,6.66,3662.0,3661.9,0.03437867]
[1732968377199,6.66,3662.0,3661.9,1.69053534]
[1732968377407,6.66,3662.0,3661.9,4.32472]
[1732968377614,6.66,3662.0,3661.9,4.3868879]
[1732968377784,7.77,3662.0,3661.9,4.3868879]
[1732968379513,8.88,3662.0,3661.9,4.3868879]
[1732968381190,9.99,3662.0,3661.9,4.3868879]
[1732968383019,11.1,3662.0,3661.9,4.3868879]
[1732968384028,11.1,3662.0,3661.9,4.42126657]
[1732968384600,12.21,3662.0,3661.9,4.42126657]
[1732968386556,13.32,3662.0,3661.9,4.42126657]
[1732968388219,14.43,3662.0,3661.9,7.42126657]
[1732968389030,14.43,3662.0,3661.9,7.97126657]
[1732968389952,15.54,3662.0,3661.9,7.97126657]
[1732968390848,7.04655,3662.0,3661.9,10.06436881]
[1732968391058,7.04655,3662.0,3661.9,10.41835098]
[1732968391359,4.31581,3662.0,3661.9,10.41835098]
[1732968391581,1.3297,3662.0,3661.9,10.41835098]
[1732968392070,1.3297,3662.0,3661.9,10.97211611]
[1732968392674,1e-05,3662.0,3661.9,10.97211611]
[1732968393438,1e-05,3662.0,3661.9,11.06211611]
[1732968394943,1.11001,3662.0,3661.9,10.97211611]
[1732968395290,1e-05,3662.0,3661.9,10.70813394]
[1732968398086,1.11001,3662.0,3661.9,10.70813394]
[1732968399000,1.11001,3662.0,3661.9,5.0650317]
[1732968399668,2.22001,3662.0,3661.9,5.0650317]
[1732968400270,2.22001,3662.0,3661.9,8.6150317]
[1732968401488,3.33001,3662.0,3661.9,8.6150317]
[1732968401698,3.33001,3662.0,3661.9,5.82736657]
[1732968401854,3.663011,3662.0,3661.9,2.82736657]
[1732968402062,3.33001,3662.0,3661.9,2.82736657]
[1732968402985,1.11,3663.5,3663.2,2.72985]
[1732968403359,1.11,3663.5,3663.2,2.78739838]
[1732968404561,8.87482652,3663.3,3663.2,2.78739838]
[1732968406259,9.98482652,3663.3,3663.2,2.78739838]
[1732968407871,11.09482652,3663.3,3663.2,2.78739838]
[1732968408599,12.21911976,3663.3,3663.2,0.05754838]
[1732968408973,12.21911976,3663.3,3663.0,2.72994]
[1732968409300,12.21911976,3663.3,3663.1,0.05748271]
[1732968409496,13.32911976,3663.3,3663.1,0.05748271]
[1732968409712,13.32911976,3663.3,3663.1,2.78740271]
[1732968411439,14.43911976,3663.3,3663.2,2.72985]
[1732968411607,13.31482652,3663.3,3663.2,2.78730407]
[1732968411802,13.31482652,3663.3,3663.2,4.40210407]
[1732968412411,13.31482652,3663.3,3663.2,2.78730407]
[1732968413020,14.42482652,3663.3,3663.2,2.78730407]
[1732968413733,14.42482652,3663.3,3663.2,4.35920407]
[1732968414163,14.42482652,3663.3,3663.2,2.78730407]
[1732968414815,15.53482652,3663.3,3663.2,2.78730407]
[1732968416321,16.64482652,3663.3,3663.2,2.78730407]
[1732968418031,17.75482652,3663.3,3663.2,2.78730407]
[1732968418404,19.37012652,3663.3,3663.2,0.05745407]
[1732968419030,19.37012652,3663.3,3663.2,2.78730407]
[1732968419605,20.48012652,3663.3,3663.2,2.78730407]
[1732968420616,18.86482652,3663.3,3663.2,4.35920407]
[1732968421152,18.86482652,3663.3,3663.2,2.78730407]
[1732968421345,19.97482652,3663.3,3663.2,2.78730407]
[1732968423149,21.08482652,3663.3,3663.2,2.78730407]
[1732968424448,22.57879964,3663.3,3663.2,0.05745407]
[1732968424649,23.68879964,3663.3,3662.8,2.73008]
[1732968425516,23.68879964,3663.3,3662.6,2.83028]
[1732968425714,1.6153,3663.2,3662.9,0.05750481]
[1732968425953,1.6153,3663.2,3662.6,0.1]
[1732968426136,5.45576547,3663.1,3662.6,0.1]
[1732968426344,5.45576547,3663.1,3662.7,0.05761137]
[1732968426676,2.73015,3662.8,3662.7,0.05761137]
[1732968426817,2.73027,3662.7,3662.0,2.83073]
[1732968427017,1.6153,3662.8,3662.1,0.05785932]
[1732968427213,2.72583547,3663.1,3661.9,2.76514867]
[1732968427214,4.34562,3662.6,3661.9,2.76514867]
[1732968427454,4.34562,3662.6,3662.0,0.0578908]
[1732968428025,5.45562,3662.6,3662.0,0.0578908]
[1732968428218,2.7253,3662.6,3662.0,2.7886208]
[1732968428552,2.7253,3662.6,3662.0,0.0578908]
[1732968428759,0.288683,3662.5,3662.0,0.0578908]
[1732968428963,2.7306,3662.2,3662.0,0.0578908]
[1732968429170,4.34578,3662.4,3662.0,0.0578908]
[1732968429324,1.6153,3662.4,3662.0,0.0578908]
[1732968429532,2.7253,3662.4,3662.0,0.0578908]
[1732968429841,6.128482,3662.4,3662.0,0.0578908]
[1732968430329,3.398022,3662.4,3662.0,0.0578908]
[1732968430669,6.128492,3662.4,3662.0,0.0578908]
[1732968431163,7.238492,3662.4,3662.0,0.0578908]
[1732968431372,4.508022,3662.4,3662.0,0.0578908]
[1732968431663,7.238482,3662.4,3662.0,0.0578908]
[1732968431832,7.238482,3662.4,3661.9,0.03437867]
[1732968432037,7.238482,3662.4,3662.0,0.0578908]
[1732968432526,4.508022,3662.4,3662.0,0.0578908]
[1732968432877,4.508022,3662.4,3662.2,0.19]
[1732968432878,3.33,3662.4,3662.2,0.19]
[1732968433168,3.33,3662.4,3662.3,0.05799347]
[1732968433466,3.33,3662.4,3662.2,0.19]
[1732968433668,3.33,3662.4,3662.3,2.78851347]
[1732968434563,4.44,3662.4,3662.3,2.78851347]
[1732968436127,5.55,3662.4,3662.3,2.78851347]
[1732968437728,6.66,3662.4,3662.3,0.05799347]
[1732968438167,6.66,3662.4,3662.1,2.73061]
[1732968438372,6.66,3662.4,3662.3,0.05799347]
[1732968438553,6.66,3662.4,3662.2,0.05802494]
[1732968438746,6.66,3662.4,3662.3,0.05794982]
[1732968439147,6.66,3662.4,3662.2,2.73057]
[1732968439346,7.77,3662.4,3662.3,0.05794982]
[1732968439749,7.77,3662.4,3662.0,2.73073]
[1732968439976,7.77,3662.4,3662.3,0.05794982]
[1732968440162,9.094345,3662.4,3661.9,0.03437867]
[1732968440363,2.73053,3662.3,3661.9,0.03437867]
[1732968440874,9.094345,3662.4,3661.9,0.03437867]
[1732968441065,1.11,3662.3,3661.9,0.03437867]
[1732968441450,1.11,3662.3,3661.9,2.76519867]
[1732968442787,2.22,3662.3,3661.9,2.76519867]
[1732968444579,3.33,3662.3,3661.9,0.03437867]
[1732968444741,2.73063,3662.2,3661.9,0.03437867]
[1732968445083,7.7393555,3662.3,3661.9,0.03437867]
[1732968446382,8.8493555,3662.3,3661.9,0.03437867]
[1732968446748,4.44,3662.3,3661.9,2.76514867]
[1732968446952,7.17055,3662.3,3661.9,0.03437867]
[1732968447935,7.17055,3662.3,3662.0,0.05808225]
[1732968448154,8.28055,3662.3,3662.0,0.05808225]
[1732968448929,2.73059,3662.2,3662.0,0.05808225]
[1732968449128,4.117652,3662.2,3662.0,0.05808225]
[1732968449802,5.227652,3662.2,3662.0,0.05808225]
[1732968450722,2.497062,3662.2,3662.0,0.05808225]
[1732968451050,1.11,3662.2,3662.0,0.05808225]
[1732968451399,2.22,3662.2,3662.0,0.05808225]
[1732968453155,3.33,3662.2,3661.9,0.03437867]
[1732968453753,3.33,3662.2,3662.0,0.05808225]
[1732968454808,4.44,3662.2,3662.0,0.05808225]
[1732968456212,4.44,3662.2,3661.9,0.03437867]
[1732968456527,5.55,3662.2,3661.9,0.03437867]
[1732968457330,5.55,3662.2,3661.9,2.76517867]
[1732968457517,5.55,3662.2,3662.1,2.73067]
[1732968457723,5.55,3662.2,3662.1,2.7887771]
[1732968458244,6.66,3662.2,3662.1,2.7887771]
[1732968458557,6.66,3662.2,3662.1,4.4015771]
[1732968459852,7.77,3662.2,3662.1,0.1581071]
[1732968460221,7.77,3662.2,3662.1,2.8887771]
[1732968461113,7.77,3662.2,3662.1,0.1581071]
[1732968461350,8.88,3662.2,3662.1,0.0581071]
[1732968461551,13.71959,3662.2,3661.9,0.03437867]
[1732968461756,13.71959,3662.2,3662.0,0.05809633]
[1732968461941,2.73067,3662.1,3662.0,0.05809633]
[1732968462257,10.989,3662.2,3662.0,0.05809633]
[1732968463026,12.099,3662.2,3662.0,0.05809633]
[1732968464552,9.99,3662.2,3662.0,0.05809633]
[1732968464860,11.1,3662.2,3662.0,0.05809633]
[1732968466427,12.21,3662.2,3662.0,0.05809633]
[1732968467856,12.21,3662.2,3661.9,2.76515867]
[1732968468031,13.32,3662.2,3662.1,0.05806486]
[1732968468229,13.32,3662.2,3662.0,0.05809633]
[1732968468416,13.32,3662.2,3661.9,2.76515867]
[1732968468621,13.32,3662.2,3662.1,0.05806486]
[1732968469064,2.73067,3662.1,3661.9,0.03437867]
[1732968469420,2.73067,3662.1,3662.0,0.05809633]
[1732968469758,3.84067,3662.1,3662.0,0.05809633]
[1732968469968,1.11,3662.1,3662.0,0.05809633]
[1732968470255,6.10519502,3662.1,3662.0,0.05809633]
[1732968470504,3.37452502,3662.1,3662.0,0.05809633]
[1732968470783,3.37452502,3662.1,3661.9,0.03437867]
[1732968471244,2.22,3662.1,3662.0,0.05809493]
[1732968471879,2.22,3662.1,3662.0,4.30163493]
[1732968472247,2.22,3662.1,3662.0,4.40163493]
[1732968472867,3.33,3662.1,3662.0,4.40163493]
[1732968474602,4.44,3662.1,3662.0,4.40163493]
[1732968476405,5.55,3662.1,3662.0,4.40163493]
[1732968477388,5.55,3662.1,3662.0,7.95163493]
[1732968477966,6.66,3662.1,3662.0,7.95163493]
[1732968479805,7.77,3662.1,3662.0,7.95163493]
[1732968480890,7.77,3662.1,3662.0,7.98601266]
[1732968481403,7.77,3662.1,3662.0,7.43601266]
[1732968481729,8.88,3662.1,3662.0,4.43601266]
[1732968482200,8.88,3662.1,3662.0,2.92321266]
[1732968483083,8.88,3662.1,3662.0,2.82321266]
[1732968483268,9.99,3662.1,3662.0,2.82321266]
[1732968483904,9.99,3662.1,3662.0,0.09247266]
[1732968484075,12.71583547,3662.1,3662.0,0.09247266]
[1732968484473,12.71583547,3662.1,3662.0,0.03437773]
[1732968484866,13.82583547,3662.1,3662.0,0.03437773]
[1732968486669,14.93583547,3662.1,3662.0,0.03437773]
[1732968488910,14.93583547,3662.1,3662.0,2.76511773]
[1732968489095,16.04583547,3662.1,3662.0,2.76511773]
[1732968489411,16.04583547,3662.1,3662.0,0.03437773]
[1732968489906,16.04583547,3662.1,3662.0,2.76511773]
[1732968490309,13.32,3662.1,3662.0,2.76511773]
[1732968490536,13.32,3662.1,3662.0,4.42453664]
[1732968490667,14.43,3662.1,3662.0,4.42453664]
[1732968492424,15.54,3662.1,3662.0,4.42453664]
[1732968493418,15.54,3662.1,3662.0,4.52453664]
[1732968493900,16.65,3662.1,3662.0,4.52453664]
[1732968495487,17.76,3662.1,3662.0,4.52453664]
[1732968497231,18.87,3662.1,3662.0,4.52453664]
[1732968497727,18.87,3662.1,3662.0,7.52453664]
[1732968498889,19.98,3662.1,3662.0,7.52453664]
[1732968500506,21.09,3662.1,3662.0,7.52453664]
[1732968501841,21.09,3662.1,3662.0,8.89500626]
[1732968502334,22.2,3662.1,3662.0,8.89500626]
[1732968504029,23.31,3662.1,3662.0,8.89500626]
[1732968505609,24.42,3662.1,3662.0,8.89500626]
[1732968507352,25.53,3662.1,3662.0,8.89500626]
[1732968508824,26.64,3662.1,3662.0,8.89500626]
[1732968510470,27.75,3662.1,3662.0,8.89500626]
[1732968511360,27.75,3662.1,3662.0,6.18603664]
[1732968511514,27.75,3662.1,3662.0,6.28603664]
[1732968512139,28.86,3662.1,3662.0,6.28603664]
[1732968513059,30.4526,3662.1,3662.0,0.19239664]
[1732968513263,33.17843547,3662.1,3662.0,0.19239664]
[1732968513463,33.17843547,3662.1,3662.0,0.13437773]
[1732968513621,34.28843547,3662.1,3662.0,0.03437773]
[1732968514821,29.97,3662.1,3662.0,0.22437773]
[1732968515339,31.08,3662.1,3662.0,0.22437773]
[1732968515742,31.08,3662.1,3662.0,2.95511773]